fUSD/lending_fUSD_20260504
["ID","MTS","AMOUNT","RATE_DAILY","PERIOD"]
[421531627,1777828436000,-1534.0,0.00037457,7]
[421531625,1777828436000,-150.0,0.00037452,7]
[421531626,1777828436000,-272.0690965,0.00037452,7]
[421531624,1777828436000,-150.0,0.000374,2]
[421531630,1777828436000,-217.31690936,0.00037465,2]
[421531628,1777828436000,-153.0,0.00037457,7]
[421531631,1777828436000,-49248.47303543,0.00037475,2]
[421531632,1777828436000,-469.2900755,0.00037475,2]
[421531633,1777828436000,-3476.46400164,0.00037475,2]
[421531635,1777828436000,-269.32007679,0.00037475,2]
[421531634,1777828436000,-1836.37474076,0.00037475,2]
[421531639,1777828436000,-800.30798175,0.00037475,2]
[421531638,1777828436000,-61036.08648931,0.00037475,2]
[421531640,1777828436000,-48991.45797951,0.00037475,2]
[421531641,1777828436000,-847.70659343,0.00037475,2]
[421531636,1777828436000,-272.5845,0.00037475,2]
[421531637,1777828436000,-253.79444001,0.00037475,2]
[421531643,1777828436000,-2018.596905,0.00037475,2]
[421531642,1777828436000,-289.5,0.00037475,2]
[421531581,1777828436000,-150.0,0.00035579,7]
[421531620,1777828436000,-1307.89909,0.000371,86]
[421531618,1777828436000,-1307.8991,0.000371,86]
[421531629,1777828436000,-280.66942888,0.00037457,7]
[421531615,1777828436000,-600.0,0.0003702,120]
[421531590,1777828436000,-866.0,0.00036164,2]
[421531591,1777828436000,-152.0,0.00036209,30]
[421531617,1777828436000,-1307.8991,0.000371,86]
[421531594,1777828436000,-20693.92638829,0.0003629,10]
[421531601,1777828436000,-2511.85,0.00036469,10]
[421531600,1777828436000,-2506.71,0.00036468,10]
[421531593,1777828436000,-5000.0,0.00036259,10]
[421531592,1777828436000,-25000.0,0.00036236,10]
[421531597,1777828436000,-12500.0,0.00036386,10]
[421531595,1777828436000,-4306.07361171,0.0003629,10]
[421531599,1777828436000,-2527.74,0.00036444,10]
[421531598,1777828436000,-5000.0,0.00036407,10]
[421531596,1777828436000,-2505.7,0.00036368,10]
[421531589,1777828436000,-25000.0,0.00036153,10]
[421531613,1777828436000,-394.0,0.00036822,2]
[421531603,1777828436000,-150.0,0.00036516,7]
[421531610,1777828436000,-578.60676563,0.000368,120]
[421531605,1777828436000,-5000.0,0.0003666,10]
[421531607,1777828436000,-885.969635,0.00036726,120]
[421531606,1777828436000,-200.0,0.0003667,2]
[421531611,1777828436000,-284.28,0.000368,30]
[421531608,1777828436000,-5000.0,0.00036747,10]
[421531604,1777828436000,-5000.0,0.00036626,10]
[421531602,1777828436000,-2000.0,0.000365,7]
[421531612,1777828436000,-12500.0,0.00036818,10]
[421531614,1777828436000,-2500.0,0.00036972,10]
[421531609,1777828436000,-5000.0,0.00036787,10]
[421531658,1777828437000,-742.369839,0.00037475,7]
[421531665,1777828437000,-151.0,0.00037475,7]
[421531663,1777828437000,-151.0,0.00037475,7]
[421531664,1777828437000,-151.0,0.00037475,7]
[421531661,1777828437000,-949.399524,0.00037475,7]
[421531662,1777828437000,-949.399524,0.00037475,7]
[421531659,1777828437000,-949.399524,0.00037475,7]
[421531660,1777828437000,-949.399524,0.00037475,7]
[421531656,1777828437000,-742.369839,0.00037475,7]
[421531657,1777828437000,-742.369839,0.00037475,7]
[421531649,1777828437000,-721.74584029,0.00037475,2]
[421531653,1777828437000,-752.53710999,0.00037475,2]
[421531654,1777828437000,-153.652054,0.00037475,7]
[421531652,1777828437000,-1000.0,0.00037475,2]
[421531651,1777828437000,-1000.0,0.00037475,2]
[421531650,1777828437000,-123654.6156365,0.00037475,2]
[421531648,1777828437000,-538.85727579,0.00037475,2]
[421531647,1777828437000,-1855.29337291,0.00037475,2]
[421531645,1777828437000,-6115.02849417,0.00037475,2]
[421531646,1777828437000,-661.03999474,0.00037475,2]
[421531644,1777828437000,-421.37,0.0002,2]
[421531666,1777828437000,-186.557,0.00037475,7]
[421531655,1777828437000,-742.369839,0.00037475,7]
[421531669,1777828437000,-218.546658,0.00037475,7]
[421531670,1777828437000,-417.954381,0.00037475,7]
[421531667,1777828437000,-151.0,0.00037475,7]
[421531668,1777828437000,-417.954381,0.00037475,7]
[421531692,1777828437000,-844.64,0.000379,2]
[421531693,1777828437000,-1827.05,0.000379,2]
[421531688,1777828437000,-13782.12,0.000377,7]
[421531689,1777828437000,-2230.448,0.00037709,49]
[421531687,1777828437000,-1827.05,0.000377,2]
[421531686,1777828437000,-1827.05,0.000377,2]
[421531691,1777828437000,-205.10967308,0.0003788,2]
[421531684,1777828437000,-844.64,0.000377,2]
[421531685,1777828437000,-844.64,0.000377,2]
[421531683,1777828437000,-4396.96044202,0.0003759,2]
[421531690,1777828437000,-476.0,0.00037816,11]
[421531681,1777828437000,-151.0,0.00037475,7]
[421531671,1777828437000,-218.546658,0.00037475,7]
[421531682,1777828437000,-2000.0,0.000375,7]
[421531672,1777828437000,-218.546658,0.00037475,7]
[421531674,1777828437000,-218.546658,0.00037475,7]
[421531675,1777828437000,-417.954381,0.00037475,7]
[421531673,1777828437000,-417.954381,0.00037475,7]
[421531676,1777828437000,-151.0,0.00037475,7]
[421531679,1777828437000,-151.0,0.00037475,7]
[421531680,1777828437000,-151.0,0.00037475,7]
[421531678,1777828437000,-151.0,0.00037475,7]
[421531677,1777828437000,-151.0,0.00037475,7]
[421531737,1777828438000,-300.0,0.00038187,2]
[421531730,1777828438000,-300.0,0.00038187,2]
[421531734,1777828438000,-1791.83489269,0.00038187,2]
[421531727,1777828438000,-300.0,0.00038187,2]
[421531738,1777828438000,-300.0,0.00038187,2]
[421531726,1777828438000,-300.0,0.00038187,2]
[421531731,1777828438000,-426.566207,0.00038187,2]
[421531733,1777828438000,-300.0,0.00038187,2]
[421531728,1777828438000,-300.0,0.00038187,2]
[421531723,1777828438000,-300.0,0.00038187,2]
[421531732,1777828438000,-852.02203048,0.00038187,2]
[421531729,1777828438000,-300.0,0.00038187,2]
[421531736,1777828438000,-343.10293342,0.00038187,2]
[421531748,1777828438000,-300.0,0.00038187,2]
[421531740,1777828438000,-300.0,0.00038187,2]
[421531751,1777828438000,-433.53989763,0.00038187,2]
[421531750,1777828438000,-300.0,0.00038187,2]
[421531739,1777828438000,-1144.24336667,0.00038187,2]
[421531743,1777828438000,-300.0,0.00038187,2]
[421531741,1777828438000,-862.2151725,0.00038187,2]
[421531742,1777828438000,-300.0,0.00038187,2]
[421531744,1777828438000,-300.0,0.00038187,2]
[421531745,1777828438000,-300.0,0.00038187,2]
[421531746,1777828438000,-310.10110385,0.00038187,2]
[421531721,1777828438000,-891.13316488,0.00038187,2]
[421531749,1777828438000,-462.67536322,0.00038187,2]
[421531747,1777828438000,-300.0,0.00038187,2]
[421531735,1777828438000,-300.0,0.00038187,2]
[421531724,1777828438000,-301.02040482,0.00038187,2]
[421531713,1777828438000,-300.0,0.00038187,2]
[421531720,1777828438000,-1064.20055128,0.00038187,2]
[421531694,1777828438000,-1049.0,0.00037913,2]
[421531695,1777828438000,-623.0,0.00037913,2]
[421531696,1777828438000,-245.0,0.00037913,2]
[421531698,1777828438000,-2094.3105,0.00038019,2]
[421531700,1777828438000,-450.33,0.00038034,30]
[421531701,1777828438000,-1485.78,0.00038034,30]
[421531697,1777828438000,-162.45035992,0.00038,7]
[421531702,1777828438000,-416.0,0.0003806,30]
[421531699,1777828438000,-150.0,0.00038034,30]
[421531704,1777828438000,-151.0,0.00038181,7]
[421531706,1777828438000,-151.0,0.00038181,7]
[421531752,1777828438000,-300.0,0.00038187,2]
[421531707,1777828438000,-150.0,0.00038183,120]
[421531705,1777828438000,-151.0,0.00038181,7]
[421531710,1777828438000,-300.0,0.00038187,2]
[421531708,1777828438000,-222.74536082,0.00038183,120]
[421531709,1777828438000,-300.0,0.00038187,2]
[421531711,1777828438000,-491.42621558,0.00038187,2]
[421531714,1777828438000,-300.0,0.00038187,2]
[421531712,1777828438000,-300.0,0.00038187,2]
[421531716,1777828438000,-602.92697109,0.00038187,2]
[421531715,1777828438000,-300.0,0.00038187,2]
[421531718,1777828438000,-300.0,0.00038187,2]
[421531703,1777828438000,-2094.3105,0.00038165,2]
[421531725,1777828438000,-301.01875868,0.00038187,2]
[421531719,1777828438000,-526.39557632,0.00038187,2]
[421531717,1777828438000,-300.0,0.00038187,2]
[421531722,1777828438000,-724.19402235,0.00038187,2]
[421531754,1777828438000,-300.0,0.00038187,2]
[421531791,1777828438000,-526.39557632,0.00038187,2]
[421531755,1777828438000,-300.0,0.00038187,2]
[421531786,1777828438000,-300.0,0.00038187,2]
[421531787,1777828438000,-300.0,0.00038187,2]
[421531792,1777828438000,-300.0,0.00038187,2]
[421531793,1777828438000,-1064.20055128,0.00038187,2]
[421531790,1777828438000,-300.0,0.00038187,2]
[421531801,1777828438000,-300.0,0.00038187,2]
[421531802,1777828438000,-300.0,0.00038187,2]
[421531796,1777828438000,-308.86043429,0.00038187,2]
[421531794,1777828438000,-891.13316488,0.00038187,2]
[421531798,1777828438000,-300.0,0.00038187,2]
[421531797,1777828438000,-724.19402235,0.00038187,2]
[421531795,1777828438000,-300.0,0.00038187,2]
[421531799,1777828438000,-301.02040482,0.00038187,2]
[421531800,1777828438000,-300.0,0.00038187,2]
[421531803,1777828438000,-300.0,0.00038187,2]
[421531806,1777828438000,-426.566207,0.00038187,2]
[421531812,1777828438000,-343.10293342,0.00038187,2]
[421531813,1777828438000,-300.0,0.00038187,2]
[421531804,1777828438000,-300.0,0.00038187,2]
[421531807,1777828438000,-300.0,0.00038187,2]
[421531815,1777828438000,-1144.24336667,0.00038187,2]
[421531814,1777828438000,-300.0,0.00038187,2]
[421531811,1777828438000,-300.0,0.00038187,2]
[421531809,1777828438000,-1791.83489269,0.00038187,2]
[421531810,1777828438000,-300.0,0.00038187,2]
[421531808,1777828438000,-852.02203048,0.00038187,2]
[421531756,1777828438000,-300.0,0.00038187,2]
[421531784,1777828438000,-300.0,0.00038187,2]
[421531788,1777828438000,-602.92697109,0.00038187,2]
[421531805,1777828438000,-300.0,0.00038187,2]
[421531782,1777828438000,-489.36969957,0.00038187,2]
[421531789,1777828438000,-300.0,0.00038187,2]
[421531763,1777828438000,-300.0,0.00038187,2]
[421531762,1777828438000,-300.0,0.00038187,2]
[421531764,1777828438000,-300.0,0.00038187,2]
[421531760,1777828438000,-482.8546576,0.00038187,2]
[421531757,1777828438000,-300.0,0.00038187,2]
[421531758,1777828438000,-300.0,0.00038187,2]
[421531759,1777828438000,-300.0,0.00038187,2]
[421531761,1777828438000,-309.0528839,0.00038187,2]
[421531766,1777828438000,-300.0,0.00038187,2]
[421531771,1777828438000,-300.0,0.00038187,2]
[421531770,1777828438000,-300.0,0.00038187,2]
[421531767,1777828438000,-300.0,0.00038187,2]
[421531777,1777828438000,-300.0,0.00038187,2]
[421531753,1777828438000,-450.74402986,0.00038187,2]
[421531768,1777828438000,-300.0,0.00038187,2]
[421531776,1777828438000,-300.0,0.00038187,2]
[421531780,1777828438000,-300.78559914,0.00038187,2]
[421531785,1777828438000,-300.0,0.00038187,2]
[421531779,1777828438000,-300.0,0.00038187,2]
[421531781,1777828438000,-491.42621558,0.00038187,2]
[421531778,1777828438000,-300.0,0.00038187,2]
[421531783,1777828438000,-362.78206915,0.00038187,2]
[421531775,1777828438000,-300.0,0.00038187,2]
[421531773,1777828438000,-300.0,0.00038187,2]
[421531774,1777828438000,-300.0,0.00038187,2]
[421531765,1777828438000,-300.0,0.00038187,2]
[421531769,1777828438000,-300.0,0.00038187,2]
[421531772,1777828438000,-300.0,0.00038187,2]
[421531831,1777828439000,-300.0,0.00038187,2]
[421531836,1777828439000,-300.0,0.00038187,2]
[421531826,1777828439000,-462.67536322,0.00038187,2]
[421531835,1777828439000,-300.0,0.00038187,2]
[421531834,1777828439000,-300.0,0.00038187,2]
[421531845,1777828439000,-337.39219457,0.00038187,2]
[421531833,1777828439000,-300.0,0.00038187,2]
[421531839,1777828439000,-300.0,0.00038187,2]
[421531842,1777828439000,-300.0,0.00038187,2]
[421531844,1777828439000,-300.0,0.00038187,2]
[421531837,1777828439000,-482.8546576,0.00038187,2]
[421531829,1777828439000,-300.0,0.00038187,2]
[421531830,1777828439000,-450.74402986,0.00038187,2]
[421531825,1777828439000,-300.0,0.00038187,2]
[421531828,1777828439000,-433.53989763,0.00038187,2]
[421531838,1777828439000,-309.0528839,0.00038187,2]
[421531827,1777828439000,-300.0,0.00038187,2]
[421531823,1777828439000,-310.10110385,0.00038187,2]
[421531819,1777828439000,-300.0,0.00038187,2]
[421531817,1777828439000,-300.0,0.00038187,2]
[421531816,1777828439000,-308.80035792,0.00038187,2]
[421531822,1777828439000,-300.0,0.00038187,2]
[421531824,1777828439000,-300.0,0.00038187,2]
[421531820,1777828439000,-300.0,0.00038187,2]
[421531818,1777828439000,-862.2151725,0.00038187,2]
[421531821,1777828439000,-300.0,0.00038187,2]
[421531843,1777828439000,-300.0,0.00038187,2]
[421531832,1777828439000,-300.0,0.00038187,2]
[421531848,1777828439000,-300.0,0.00038187,2]
[421531841,1777828439000,-300.0,0.00038187,2]
[421531847,1777828439000,-300.0,0.00038187,2]
[421531846,1777828439000,-300.0,0.00038187,2]
[421531875,1777828439000,-308.86043429,0.00038187,2]
[421531873,1777828439000,-300.0,0.00038187,2]
[421531871,1777828439000,-1064.20055128,0.00038187,2]
[421531876,1777828439000,-474.31721473,0.00038187,2]
[421531872,1777828439000,-891.13316488,0.00038187,2]
[421531870,1777828439000,-300.0,0.00038187,2]
[421531869,1777828439000,-526.39557632,0.00038187,2]
[421531868,1777828439000,-476.41521425,0.00038187,2]
[421531865,1777828439000,-602.92697109,0.00038187,2]
[421531863,1777828439000,-300.0,0.00038187,2]
[421531864,1777828439000,-300.0,0.00038187,2]
[421531866,1777828439000,-300.0,0.00038187,2]
[421531862,1777828439000,-300.0,0.00038187,2]
[421531867,1777828439000,-300.0,0.00038187,2]
[421531858,1777828439000,-300.0,0.00038187,2]
[421531856,1777828439000,-300.0,0.00038187,2]
[421531857,1777828439000,-300.0,0.00038187,2]
[421531859,1777828439000,-300.0,0.00038187,2]
[421531852,1777828439000,-300.0,0.00038187,2]
[421531855,1777828439000,-300.0,0.00038187,2]
[421531849,1777828439000,-300.0,0.00038187,2]
[421531850,1777828439000,-300.0,0.00038187,2]
[421531854,1777828439000,-300.0,0.00038187,2]
[421531861,1777828439000,-300.0,0.00038187,2]
[421531853,1777828439000,-300.0,0.00038187,2]
[421531851,1777828439000,-300.0,0.00038187,2]
[421531874,1777828439000,-312.14689555,0.00038187,2]
[421531840,1777828439000,-300.0,0.00038187,2]
[421531860,1777828439000,-491.42621558,0.00038187,2]
[421531878,1777828440000,420.0,0.0001482,2]
[421531877,1777828440000,300.0,0.00013521,2]
[421531879,1777828441000,2500.0,0.00013522,2]
[421531890,1777828441000,500.0,0.00013521,2]
[421531880,1777828441000,1303.524812,0.000294,120]
[421531881,1777828441000,500.0,0.00013521,2]
[421531882,1777828441000,500.0,0.00013521,2]
[421531883,1777828441000,500.0,0.00013521,2]
[421531884,1777828441000,500.0,0.00013521,2]
[421531886,1777828441000,500.0,0.00013521,2]
[421531885,1777828441000,500.0,0.00013521,2]
[421531887,1777828441000,500.0,0.00013521,2]
[421531889,1777828441000,500.0,0.00013521,2]
[421531888,1777828441000,500.0,0.00013521,2]
[421531901,1777828441000,500.0,0.00013521,2]
[421531893,1777828441000,500.0,0.00013521,2]
[421531891,1777828441000,500.0,0.00013521,2]
[421531902,1777828441000,500.0,0.00013521,2]
[421531900,1777828441000,500.0,0.00013521,2]
[421531898,1777828441000,500.0,0.00013521,2]
[421531899,1777828441000,500.0,0.00013521,2]
[421531903,1777828441000,500.0,0.00013521,2]
[421531897,1777828441000,500.0,0.00013521,2]
[421531894,1777828441000,280.01,0.00013521,2]
[421531895,1777828441000,219.99,0.00013521,2]
[421531892,1777828441000,500.0,0.00013521,2]
[421531896,1777828441000,500.0,0.00013521,2]
[421531911,1777828442000,500.0,0.00013521,2]
[421531905,1777828442000,500.0,0.00013521,2]
[421531904,1777828442000,500.0,0.00013521,2]
[421531906,1777828442000,500.0,0.00013521,2]
[421531908,1777828442000,500.0,0.00013521,2]
[421531907,1777828442000,500.0,0.00013521,2]
[421531909,1777828442000,500.0,0.00013521,2]
[421531910,1777828442000,500.0,0.00013521,2]
[421531912,1777828442000,500.0,0.00013521,2]
[421531914,1777828442000,500.0,0.00013521,2]
[421531923,1777828442000,300.0,0.00014148,2]
[421531915,1777828442000,280.02,0.00013521,2]
[421531924,1777828442000,300.0,0.00014148,2]
[421531922,1777828442000,300.0,0.00014148,2]
[421531921,1777828442000,300.0,0.0001352,2]
[421531920,1777828442000,500.0,0.00013521,2]
[421531913,1777828442000,500.0,0.00013521,2]
[421531917,1777828442000,500.0,0.00013521,2]
[421531918,1777828442000,500.0,0.00013521,2]
[421531916,1777828442000,219.98,0.00013521,2]
[421531919,1777828442000,342.13563557,0.00013521,2]
[421531932,1777828443000,500.0,0.00013521,2]
[421531931,1777828443000,498.20621043,0.00013521,2]
[421531929,1777828443000,500.0,0.00013521,2]
[421531930,1777828443000,500.0,0.00013521,2]
[421531928,1777828443000,193.97303453,0.00013521,2]
[421531927,1777828443000,500.0,0.00013521,2]
[421531926,1777828443000,500.0,0.00013521,2]
[421531925,1777828443000,952.68489,0.000294,120]
[421531933,1777828444000,500.0,0.00013521,2]
[421531934,1777828444000,500.0,0.00013521,2]
[421531935,1777828444000,182.78,0.00013411,2]
[421531939,1777828444000,274.03515911,0.00014148,2]
[421531937,1777828444000,500.0,0.00014157,2]
[421531938,1777828444000,300.0,0.00014148,2]
[421531940,1777828444000,253.113157,7.945e-05,2]
[421531936,1777828444000,291.56,0.00013411,2]
[421531947,1777828445000,941.74,0.00011554,2]
[421531942,1777828445000,197.51319664,9.147e-05,2]
[421531941,1777828445000,744.22680336,9.147e-05,2]
[421531944,1777828445000,941.74,0.00010109,2]
[421531943,1777828445000,941.74,9.628e-05,2]
[421531946,1777828445000,941.74,0.00011072,2]
[421531949,1777828445000,941.74,0.00012516,2]
[421531948,1777828445000,941.74,0.00012035,2]
[421531945,1777828445000,941.74,0.00010591,2]
[421531953,1777828445000,385.09680336,0.00014442,2]
[421531952,1777828445000,941.74,0.00013961,2]
[421531950,1777828445000,941.74,0.00012998,2]
[421531951,1777828445000,941.74,0.00013479,2]
[421531958,1777828920000,-500.0,0.00013421,2]
[421531964,1777829124000,161.636777,0.00029566,120]
[421531965,1777829156000,183.687958,0.00029566,120]
[421531967,1777829203000,312.269527,0.00028845,120]
[421531974,1777829205000,-1087.4435,0.00014823,2]
[421531975,1777829205000,-213.28756605,0.00014923,2]
[421531972,1777829205000,-556.64319664,0.00014442,2]
[421531971,1777829205000,-250.0,0.00014,2]
[421531968,1777829205000,-350.567,0.00013321,2]
[421531969,1777829205000,-184.278472,0.00013421,2]
[421531970,1777829205000,-250.0,0.00013932,2]
[421531973,1777829205000,-250.0,0.00014763,2]
[421531976,1777829249000,431.031406,0.00029566,120]
[421531977,1777829301000,150.77,9.119e-05,2]
[421531979,1777829324000,183.687957,0.00026852,120]
[421531980,1777829331000,372.126517,0.00027048,120]
[421531981,1777829358000,-259.55887206,0.00014923,2]
[421531982,1777829375000,186.063258,0.00026852,120]
[421531983,1777829388000,-318.12356189,0.00014923,2]
[421531984,1777829407000,-150.77,0.00014923,2]
[421533929,1777829631000,-300.37999902,0.00012,2]
[421533930,1777829631000,-1167.93980651,0.00012,2]
[421533932,1777829631000,-2059.927,0.00012,2]
[421533934,1777829631000,-708.24423702,0.00012,2]
[421533933,1777829631000,-517.29085576,0.00012,2]
[421533935,1777829631000,-5691.65157536,0.00012,2]
[421533936,1777829631000,-102012.77737789,0.00012,2]
[421533937,1777829631000,-58856.72469889,0.00012,2]
[421533938,1777829631000,-982.80761298,0.00012,2]
[421533931,1777829631000,-8191.57136946,0.00012,2]
[421533966,1777829632000,-870.40321313,0.00016016,2]
[421533964,1777829632000,-300.0,0.00016,2]
[421533959,1777829632000,-643725.48372338,0.00015,2]
[421533961,1777829632000,-870.40321322,0.00015305,2]
[421533963,1777829632000,-941.74,0.00015886,2]
[421533965,1777829632000,-739.5,0.00016,2]
[421533972,1777829632000,-941.74,0.0001733,2]
[421533971,1777829632000,-150.0,0.0001697,2]
[421533969,1777829632000,-941.74,0.00016849,2]
[421533939,1777829632000,-337310.87488011,0.00012,2]
[421533973,1777829632000,-150.0,0.00017364,2]
[421533967,1777829632000,-941.74,0.00016368,2]
[421533968,1777829632000,-870.40321313,0.00016726,2]
[421533960,1777829632000,-912.77192355,0.00015205,2]
[421533970,1777829632000,-279.99,0.00016903,2]
[421533974,1777829632000,-870.40321313,0.00017437,2]
[421533962,1777829632000,-941.74,0.00015405,2]
[421533952,1777829632000,-1196702.13899968,0.00015,2]
[421533957,1777829632000,-2481.623,0.00015,2]
[421533940,1777829632000,-217.31690937,0.0001499,2]
[421533942,1777829632000,-300.0,0.00014999,2]
[421533941,1777829632000,-200.0,0.00014999,2]
[421533943,1777829632000,-666.0,0.00014999,2]
[421533944,1777829632000,-274910.72523552,0.00015,2]
[421533945,1777829632000,-44692.53857701,0.00015,2]
[421533947,1777829632000,-288.11883458,0.00015,2]
[421533958,1777829632000,-6460.26363737,0.00015,2]
[421533948,1777829632000,-4897.49151961,0.00015,2]
[421533949,1777829632000,-1304.48,0.00015,2]
[421533946,1777829632000,-75731.57099939,0.00015,2]
[421533954,1777829632000,-300.0,0.00015,2]
[421533953,1777829632000,-149.2396575,0.00015,2]
[421533951,1777829632000,-890.0,0.00015,2]
[421533955,1777829632000,-89.57995184,0.00015,2]
[421533956,1777829632000,-3312.377,0.00015,2]
[421533950,1777829632000,-192234.07019898,0.00015,2]
[421533976,1777829632000,-500.0,0.00017661,2]
[421533975,1777829632000,-166.66,0.00017559,2]
[421533981,1777829632000,-159.0,0.00017661,2]
[421534003,1777829632000,-194.06,0.00019384,2]
[421534001,1777829632000,-912.77192349,0.0001902,2]
[421534000,1777829632000,-166.66,0.00018945,2]
[421534002,1777829632000,-500.0,0.000192,7]
[421534004,1777829632000,-166.66,0.00019407,2]
[421534007,1777829632000,-870.40321313,0.00019568,2]
[421534008,1777829632000,-150.0,0.00019603,4]
[421533999,1777829632000,-870.40321313,0.00018858,2]
[421534006,1777829632000,-250.0,0.00019492,2]
[421534009,1777829632000,-150.0,0.00019603,2]
[421534011,1777829632000,-150.0,0.00019603,2]
[421534013,1777829632000,-150.0,0.00019603,2]
[421534010,1777829632000,-150.0,0.00019603,2]
[421534012,1777829632000,-150.0,0.00019603,2]
[421534014,1777829632000,-150.0,0.00019603,2]
[421533978,1777829632000,-500.0,0.00017661,2]
[421534005,1777829632000,-166.66,0.00019455,2]
[421533998,1777829632000,-191.17,0.00018856,2]
[421533985,1777829632000,-150.0,0.00017904,2]
[421533997,1777829632000,-870.64,0.00018856,2]
[421533977,1777829632000,-151.0,0.00017661,2]
[421533996,1777829632000,-166.66,0.00018483,2]
[421533979,1777829632000,-151.0,0.00017661,2]
[421533980,1777829632000,-253.57321307,0.00017661,2]
[421533984,1777829632000,-941.74,0.00017812,2]
[421533983,1777829632000,-177.1,0.00017668,2]
[421533986,1777829632000,-1000.0,0.00017945,2]
[421533988,1777829632000,-150.0,0.00017989,2]
[421533982,1777829632000,-500.0,0.00017661,2]
[421533993,1777829632000,-941.74,0.00018293,2]
[421533991,1777829632000,-1422.36266416,0.00018202,2]
[421533995,1777829632000,-739.5,0.000184,2]
[421533994,1777829632000,-9529.0,0.00018397,2]
[421533990,1777829632000,-870.40321313,0.00018147,2]
[421533989,1777829632000,-166.66,0.00018021,2]
[421533992,1777829632000,-150.77,0.00018238,2]
[421533987,1777829632000,-166.66,0.00017972,2]
[421534026,1777829633000,-150.0,0.00020329,4]
[421534028,1777829633000,-150.0,0.00020692,4]
[421534030,1777829633000,-150.0,0.00020692,4]
[421534031,1777829633000,-150.0,0.00020692,4]
[421534035,1777829633000,-150.0,0.0002091,4]
[421534034,1777829633000,-739.5,0.000207,2]
[421534041,1777829633000,-150.0,0.00021236,4]
[421534029,1777829633000,-150.0,0.00020692,4]
[421534033,1777829633000,-150.0,0.00020692,4]
[421534027,1777829633000,-150.0,0.00020474,4]
[421534015,1777829633000,-150.0,0.00019603,2]
[421534025,1777829633000,-750.55,0.00020306,2]
[421534024,1777829633000,-201.73,0.00020306,2]
[421534022,1777829633000,-150.0,0.00020147,4]
[421534021,1777829633000,-150.0,0.00020147,4]
[421534020,1777829633000,-19093.45,0.00020145,2]
[421534017,1777829633000,-150.0,0.00019603,2]
[421534016,1777829633000,-150.0,0.00019603,2]
[421534042,1777829633000,-150.0,0.00021345,4]
[421534018,1777829633000,-150.0,0.00019966,4]
[421534019,1777829633000,-150.0,0.00020038,4]
[421534023,1777829633000,-870.40321313,0.00020279,2]
[421534036,1777829633000,-166.66,0.00020938,2]
[421534032,1777829633000,-150.0,0.00020692,4]
[421534040,1777829633000,-150.0,0.00021236,4]
[421534062,1777829633000,-527.54569318,0.000218,2]
[421534060,1777829633000,-522.52533801,0.000218,2]
[421534061,1777829633000,-7649.15259846,0.000218,2]
[421534058,1777829633000,-164184.6262387,0.000218,2]
[421534059,1777829633000,-81852.37404457,0.000218,2]
[421534057,1777829633000,-105548.01921306,0.000218,2]
[421534055,1777829633000,-150.0,0.00021781,4]
[421534056,1777829633000,-666.0,0.00021799,2]